bitfinex/quotes_ETHUSD_20250220
["timestamp","ask_amount","ask_price","bid_price","bid_amount"]
[1740063044645,3.64134,2746.3,2745.7,4.39578]
[1740063044969,3.64117,2746.4,2745.8,3.64183]
[1740063045180,0.8141,2746.6,2745.7,0.7538]
[1740063045386,0.8141,2746.6,2745.6,3.64215]
[1740063045387,3.64159,2746.1,2745.6,3.64216]
[1740063045523,3.64131,2746.3,2745.3,0.7794]
[1740063045741,3.64131,2746.3,2745.8,3.64185]
[1740063045944,3.64131,2746.3,2745.8,4.370228]
[1740063046278,3.641,2746.5,2745.9,3.64169]
[1740063046480,6.0541,2746.6,2745.8,4.370228]
[1740063046642,8.88087,2746.6,2746.1,3.85267682]
[1740063046981,3.6415,2746.2,2745.7,3.64197]
[1740063047181,7.28298,2746.2,2745.7,3.64197]
[1740063047339,3.64154,2746.1,2745.6,0.7674]
[1740063047537,3.64154,2746.1,2745.6,4.40947]
[1740063047768,3.64154,2746.1,2745.6,5.23568468]
[1740063047955,8.0812,2746.3,2745.7,3.64205]
[1740063048151,4.43983,2746.3,2745.7,3.64196]
[1740063048359,3.64139,2746.2,2745.7,3.64196]
[1740063048552,0.7985,2746.3,2745.8,7.49456682]
[1740063048756,3.641,2746.5,2745.9,0.74945668]
[1740063048988,7.2821,2746.5,2746.0,3.64164]
[1740063049288,0.8042,2746.6,2746.0,3.64164]
[1740063049444,3.64099,2746.5,2745.6,0.7674]
[1740063049784,3.64113,2746.4,2745.8,7.49452682]
[1740063049987,3.64146,2746.2,2745.7,0.07150972]
[1740063050196,3.64173,2746.0,2745.6,0.7674]
[1740063050350,3.64215,2745.7,2745.4,5.32]
[1740063050547,3.64199,2745.8,2745.1,3.64283]
[1740063050868,3.64215,2745.7,2745.1,4.86531668]
[1740063051073,3.64215,2745.7,2745.2,3.64264]
[1740063051276,3.64215,2745.7,2745.1,4.86531668]
[1740063051277,3.64181,2745.9,2745.3,3.64258]
[1740063051609,0.7917,2745.5,2745.0,4.37585914]
[1740063051755,0.7917,2745.8,2745.0,0.73294914]
[1740063051962,3.64245,2745.5,2745.0,4.83442174]
[1740063052164,3.64252,2745.4,2745.0,1.19151174]
[1740063052399,5.24,2745.7,2744.7,0.7794]
[1740063052594,3.64281,2745.2,2744.7,0.7794]
[1740063052907,3.64233,2745.5,2744.7,4.42266]
[1740063053407,5.24,2745.7,2744.9,3.85267682]
[1740063053701,8.88214,2745.7,2745.0,4.02817768]
[1740063053896,12.52428,2745.7,2745.1,3.64282]
[1740063054095,3.64225,2745.6,2745.0,4.02817768]
[1740063054300,3.64225,2745.6,2745.1,3.6428]
[1740063054458,5.24,2745.7,2745.0,4.02815768]
[1740063054659,5.24,2745.7,2745.2,3.64263]
[1740063054866,6.0597,2746.2,2745.7,3.64193]
[1740063055063,5.24,2746.4,2746.0,4.62047682]
[1740063055295,5.24,2747.1,2746.3,7.49381682]
[1740063055480,3.64031,2747.1,2746.5,3.64096]
[1740063055660,3.64025,2747.1,2746.6,3.64085]
[1740063055861,3.64022,2747.1,2746.5,3.6409]
[1740063056166,3.64041,2747.0,2746.5,3.6409]
[1740063056359,3.64034,2747.0,2746.3,7.28232]
[1740063056594,4.46114,2747.0,2746.3,3.64114]
[1740063056795,3.64067,2746.8,2746.3,3.64114]
[1740063057201,4.46114,2747.0,2746.4,3.64104]
[1740063057564,0.8208,2747.0,2746.7,3.64061]
[1740063057900,5.24,2747.5,2746.4,0.728218]
[1740063057901,0.7918,2747.4,2746.8,3.6405]
[1740063058101,8.87974,2747.5,2746.9,3.64037]
[1740063058466,8.87974,2747.5,2746.8,3.64057]
[1740063058800,8.87974,2747.5,2746.7,3.64072]
[1740063058801,5.24,2747.5,2746.7,3.64073]
[1740063059000,5.24,2747.5,2747.0,3.64025]
[1740063059689,5.24,2747.5,2747.0,3.64032]
[1740063059876,4.43125,2747.7,2747.1,3.64008]
[1740063059877,6.0318,2747.7,2747.1,3.64008]
[1740063060213,6.0318,2747.7,2747.1,3.6401]
[1740063060379,5.24,2748.1,2747.6,3.63953]
[1740063060567,5.24,2748.4,2747.5,3.6396]
[1740063060903,8.87852,2748.4,2747.8,3.63927]
[1740063061103,3.63863,2748.3,2747.8,3.25377]
[1740063061293,5.24,2748.4,2747.9,3.63905]
[1740063061479,5.24,2748.4,2747.8,3.63924]
[1740063061675,6.205907,2748.4,2747.8,3.63924]
[1740063062006,6.205907,2748.4,2747.8,3.63919]
[1740063062215,5.24,2748.4,2747.6,0.7794]
[1740063062410,0.72113875,2749.1,2748.3,4.41801]
[1740063062411,0.8269,2748.9,2748.3,4.41801]
[1740063062707,3.63776,2749.0,2748.3,4.4179]
[1740063063008,3.63776,2749.0,2748.4,3.70251942]
[1740063063305,3.63776,2749.0,2748.4,0.06405942]
[1740063063306,3.0,2749.0,2748.4,0.06405942]
[1740063063612,4.45838,2748.5,2747.3,3.63981]
[1740063063807,3.63889,2748.1,2747.3,3.63993]
[1740063064017,5.24,2748.4,2747.7,3.63931]
[1740063064215,3.63875,2748.2,2747.5,3.63956]
[1740063064544,3.63875,2748.2,2747.3,3.63993]
[1740063064545,1.251726,2748.2,2747.3,3.63993]
[1740063064846,3.63881,2748.2,2747.6,0.06132059]
[1740063065146,3.63897,2748.1,2747.7,0.06131171]
[1740063065344,3.63897,2748.1,2747.5,3.63965]
[1740063065545,3.63945,2747.7,2747.1,0.7794]
[1740063065795,3.64011,2747.2,2746.8,0.771]
[1740063065916,3.64048,2746.9,2746.3,3.64115]
[1740063066125,3.64063,2746.8,2746.1,4.42081]
[1740063066439,3.64048,2746.9,2746.1,4.42081]
[1740063066643,3.6413,2746.3,2745.5,3.64227]
[1740063066816,3.64162,2746.1,2745.3,4.42193]
[1740063067022,4.088592,2746.1,2745.3,3.64253]
[1740063067218,0.446972,2746.1,2745.8,3.64183]
[1740063067420,0.8281,2746.2,2745.7,3.64203]
[1740063067744,5.24,2746.6,2745.4,4.20264637]
[1740063067913,0.7947,2746.7,2746.2,3.64126]
[1740063068119,8.88033,2747.0,2746.2,3.64138]
[1740063068334,5.24,2747.0,2746.2,3.64138]
[1740063068534,5.24,2747.0,2746.4,3.6411]
[1740063068717,0.7947,2747.1,2746.4,3.6411]
[1740063068924,0.7947,2747.1,2745.7,0.7794]
[1740063068925,3.64096,2746.6,2745.7,0.7794]
[1740063069260,4.43592,2746.5,2745.8,3.64187]
[1740063069460,0.7949,2746.5,2745.9,3.64175]
[1740063069660,0.7949,2746.5,2745.7,0.7794]
[1740063069820,3.6414,2746.2,2745.6,3.64218]
[1740063070024,3.64122,2746.4,2745.6,3.64218]
[1740063070239,0.443612,2746.4,2745.5,3.64219]
[1740063070436,3.6415,2746.2,2745.3,4.41375]
[1740063070642,3.64166,2746.0,2745.4,3.64245]
[1740063070841,3.64166,2746.0,2745.3,4.41375]
[1740063071055,3.64166,2746.0,2745.3,8.05622]
[1740063071357,0.8041,2745.9,2745.3,3.64247]
[1740063071926,0.8041,2745.9,2745.4,3.64245]
[1740063072161,0.817,2746.9,2745.4,8.57353837]
[1740063072323,0.817,2746.9,2746.4,3.64104]
[1740063072867,0.817,2746.9,2746.5,3.64095]
[1740063073066,0.817,2746.9,2746.4,3.64104]
[1740063073365,0.817,2746.9,2746.2,3.64126]
[1740063073366,4.45756,2746.9,2746.2,3.64126]
[1740063073538,4.45756,2746.9,2746.0,4.42104]
[1740063073539,3.64108,2746.5,2745.7,0.7794]
[1740063073739,0.445756,2746.8,2745.9,3.64179]
[1740063074053,4.086356,2746.8,2746.2,3.64137]
[1740063074257,4.45747,2746.9,2746.8,3.64059]
[1740063074258,0.817,2746.9,2746.8,3.64059]
[1740063074456,0.7846,2747.4,2747.0,3.64031]
[1740063074764,0.7846,2747.8,2747.2,7.27994]
[1740063074967,3.6395,2747.7,2747.1,3.64015]
[1740063075265,3.63954,2747.6,2747.0,3.64026]
[1740063075472,0.442414,2747.6,2747.2,3.63999]
[1740063075764,4.082004,2747.6,2747.0,3.64028]
[1740063076169,0.442414,2747.6,2747.0,3.64023]
[1740063076470,0.442414,2747.6,2747.0,7.28048]
[1740063076671,0.442414,2747.6,2746.6,4.20264637]
[1740063076865,4.081974,2747.6,2747.0,3.64025]
[1740063077076,0.442414,2747.6,2747.0,3.64023]
[1740063077262,0.7846,2747.8,2746.7,0.78435764]
[1740063077579,4.4239,2747.8,2747.3,3.63992]
[1740063077938,0.7846,2747.8,2747.3,3.63992]
[1740063078143,4.42389,2747.8,2747.2,3.64005]
[1740063078673,0.7846,2747.8,2747.4,3.63976]
[1740063078837,0.7846,2747.8,2747.4,7.27948]
[1740063079039,0.7685,2748.1,2747.6,3.63945]
[1740063079238,5.24,2748.3,2747.9,3.63902]
[1740063079455,6.0085,2748.5,2747.9,3.63902]
[1740063079681,6.0085,2748.5,2748.0,0.05669988]
[1740063080675,9.64686,2748.5,2748.0,3.63899]
[1740063080840,9.64686,2748.5,2747.8,3.63924]
[1740063081044,0.964686,2748.4,2748.1,0.05668397]
[1740063081575,3.63884,2748.2,2747.7,3.6394]
[1740063081980,3.63865,2748.3,2747.8,3.63927]
[1740063082147,0.964686,2748.4,2747.8,3.63918]
[1740063082348,0.964686,2748.4,2748.0,3.63899]
[1740063082569,0.964686,2748.4,2747.9,3.63913]
[1740063082867,1.0611546,2748.3,2747.9,3.63913]
[1740063083401,3.63884,2748.2,2747.7,0.7794]
[1740063083606,1.0611546,2748.3,2747.8,3.63918]
[1740063083804,3.63921,2747.9,2747.4,4.40124]
[1740063084103,3.63949,2747.7,2747.1,3.64009]
[1740063084306,3.63965,2747.6,2746.9,3.64037]
[1740063084511,3.6394,2747.7,2746.8,0.7615]
[1740063084693,3.6394,2747.7,2746.2,8.179]
[1740063084694,0.7737,2747.5,2746.3,0.307]
[1740063085012,3.64067,2746.8,2746.2,7.28259]
[1740063085303,3.64073,2746.7,2746.2,3.64129]
[1740063085507,3.64109,2746.5,2745.9,3.64173]
[1740063085808,0.7691,2746.4,2745.9,3.64177]
[1740063086884,3.64126,2746.3,2745.7,3.64198]
[1740063087087,3.64126,2746.3,2745.7,7.28396]
[1740063087296,0.7691,2746.4,2745.8,3.6419]
[1740063087605,0.7691,2746.4,2745.9,3.64177]
[1740063088114,4.41027,2746.4,2745.9,3.64177]
[1740063088909,0.7691,2746.4,2746.0,3.64159]
[1740063089107,5.24,2746.6,2746.2,3.64137]
[1740063089477,3.64101,2746.5,2745.9,3.64175]
[1740063089804,3.64101,2746.5,2746.0,3.64165]
[1740063090009,0.753,2746.5,2746.0,3.64158]
[1740063090507,0.753,2746.5,2745.8,3.64186]
[1740063090716,4.39409,2746.5,2745.9,3.64171]
[1740063090939,0.753,2746.5,2746.1,3.64151]
[1740063091242,4.39407,2746.5,2746.0,3.64161]
[1740063091439,0.439407,2746.4,2745.4,0.7689]
[1740063091737,0.8297,2745.6,2745.1,3.64275]
[1740063092042,0.8297,2745.6,2744.6,0.7794]
[1740063092242,3.64268,2745.3,2744.7,3.64338]
[1740063092542,3.64268,2745.3,2744.3,4.36222269]
[1740063092543,0.772,2745.5,2744.3,0.7794]
[1740063092741,0.772,2745.5,2743.8,9.51734702]
[1740063092742,0.8147,2745.0,2744.6,3.64344]
[1740063092959,6.0547,2745.4,2744.8,3.64318]
[1740063093262,6.0547,2745.4,2744.9,3.64307]
[1740063093709,9.69723,2745.4,2744.6,4.007784]
[1740063093912,9.69723,2745.4,2744.4,0.7794]
[1740063094142,3.64276,2745.2,2744.4,0.7794]
[1740063094354,3.64292,2745.1,2744.5,7.28713]
[1740063094684,3.64276,2745.2,2744.5,3.69237243]
[1740063094957,3.64276,2745.2,2744.6,3.6435]
[1740063095108,3.64286,2745.1,2744.6,3.69229648]
[1740063095992,4.371404,2745.1,2744.6,0.04879648]
[1740063096260,6.0547,2745.4,2744.6,0.03643172]
[1740063096425,6.0547,2745.4,2745.2,3.64263]
[1740063096426,5.24,2745.4,2745.2,3.64263]
[1740063096621,0.8124,2745.8,2745.6,3.6421]
[1740063096956,0.8124,2746.3,2745.9,3.64178]
[1740063097265,0.8124,2746.3,2745.7,3.69055107]
[1740063097406,0.8124,2746.3,2746.0,0.04857325]
[1740063097612,3.64126,2746.3,2745.7,7.2839]
[1740063097905,3.64108,2746.5,2745.9,3.64176]
[1740063098110,3.64108,2746.5,2745.7,3.64193]
[1740063098111,3.64129,2746.3,2746.0,0.04857325]
[1740063098370,4.084768,2746.4,2745.6,3.64219]
[1740063098648,0.443548,2746.4,2746.1,0.04855732]
[1740063098852,4.43534,2746.6,2745.9,3.64167]
[1740063099033,4.43534,2746.6,2746.2,0.04854138]
[1740063099213,0.7944,2746.6,2746.1,3.64147]
[1740063099413,0.7944,2746.6,2746.3,0.04852545]
[1740063099414,3.641,2746.5,2746.3,0.04852545]
[1740063099626,0.44354,2746.4,2745.9,3.64167]
[1740063100060,3.641,2746.5,2745.9,3.64167]
[1740063100252,3.64113,2746.4,2745.9,3.64166]
[1740063100412,0.7944,2746.6,2746.1,3.64151]
[1740063100608,4.43529,2746.6,2746.1,3.64145]
[1740063100934,0.967529,2746.5,2745.9,3.64174]
[1740063101125,0.7944,2746.6,2745.7,3.64205]
[1740063101327,3.64137,2746.3,2745.7,7.28395]
[1740063101557,3.64137,2746.3,2745.7,3.64197]
[1740063101855,3.64162,2746.1,2745.5,3.64226]
[1740063102149,0.8329,2746.0,2745.4,3.64245]
[1740063102445,0.8329,2746.0,2745.6,3.64218]
[1740063103448,0.7842,2746.4,2745.7,0.03641719]
[1740063103758,0.7842,2746.4,2745.3,0.03641583]
[1740063104051,0.7842,2746.4,2745.7,3.64192]
[1740063104214,0.7842,2746.4,2745.9,3.64171]
[1740063104413,4.42533,2746.4,2745.7,3.64199]
[1740063104617,4.607813,2746.3,2745.7,3.64196]
[1740063104854,3.6414,2746.2,2745.7,3.64196]
[1740063105054,0.966533,2746.3,2745.7,3.64196]
[1740063105254,0.966533,2746.3,2745.9,3.64169]
[1740063105559,3.6414,2746.2,2745.7,3.64205]
[1740063105711,4.607793,2746.3,2745.8,3.6419]
[1740063105915,0.5391993,2746.2,2745.8,3.6419]
[1740063106141,4.1805893,2746.2,2745.8,3.6419]
[1740063106343,0.5391993,2746.2,2745.8,3.64186]
[1740063106550,0.966533,2746.3,2745.7,3.64197]
[1740063106751,0.966533,2746.3,2745.9,3.64177]
[1740063106975,0.966533,2746.3,2746.0,3.64158]
[1740063107632,0.966533,2746.3,2746.0,3.64157]
[1740063108236,0.966533,2746.3,2745.9,3.64178]
[1740063108433,4.42533,2746.4,2745.9,7.2835]
[1740063108635,1.84746087,2748.9,2745.6,0.03641464]
[1740063108636,0.7507,2747.2,2746.1,3.64152]
[1740063108849,3.64066,2746.8,2746.1,3.64152]
[1740063109055,5.24,2747.4,2747.0,3.64026]
[1740063109228,0.96036282,2747.4,2747.0,3.64026]
[1740063109430,3.63988,2747.4,2746.8,3.64053]
[1740063109637,7.27979,2747.4,2747.1,0.04229994]
[1740063109846,3.63988,2747.4,2746.8,7.28105]
[1740063110055,3.6396,2747.6,2747.2,0.04228401]
[1740063110246,7.27923,2747.6,2747.0,3.64026]
[1740063110428,0.727923,2747.5,2747.3,0.04226809]
[1740063110636,3.63971,2747.5,2746.9,3.64037]
[1740063110834,3.63942,2747.7,2747.4,0.04225217]
[1740063111085,3.63942,2747.7,2746.9,3.64037]
[1740063111380,3.63953,2747.6,2747.0,3.64025]
[1740063111543,4.753961,2747.8,2747.0,0.04231586]
[1740063111749,3.63994,2747.3,2746.8,3.64058]
[1740063111958,3.63994,2747.3,2747.1,0.04229994]
[1740063112159,3.63994,2747.3,2746.8,3.64058]
[1740063112364,3.63979,2747.5,2747.2,0.04228401]
[1740063112564,3.63987,2747.4,2746.8,3.64059]
[1740063112763,3.63962,2747.6,2747.3,0.04226809]
[1740063112961,1.114621,2747.8,2747.1,0.03640141]
[1740063113161,0.7507,2747.8,2747.4,0.04225217]
[1740063113478,0.7507,2747.8,2747.0,3.64021]
[1740063113652,7.279,2747.7,2747.5,0.04159161]
[1740063113848,0.7507,2747.8,2746.6,4.98030252]
[1740063114175,0.7507,2747.8,2746.9,3.64044]
[1740063114176,3.63968,2747.5,2746.9,3.64044]
[1740063114484,0.7507,2747.8,2747.3,3.63982]
[1740063114636,5.9907,2747.8,2747.1,3.6401]
[1740063115041,3.63954,2747.6,2747.0,3.64031]
[1740063115237,5.9907,2747.8,2747.2,3.64004]
[1740063115443,5.9907,2747.8,2747.3,0.03639874]
[1740063115670,5.9907,2747.8,2747.4,3.63967]
[1740063115874,5.24,2747.8,2747.4,3.63973]
[1740063116182,5.24,2747.8,2747.3,3.63991]
[1740063116479,5.24,2747.8,2747.5,3.6396]
[1740063116785,5.24,2747.8,2747.4,3.63972]
[1740063117088,5.24,2747.8,2747.6,3.63953]
[1740063117258,5.24,2748.0,2747.7,3.63933]
[1740063117462,5.24,2748.0,2747.6,3.63953]
[1740063117787,5.24,2748.0,2747.7,3.63939]
[1740063117985,5.24,2748.0,2747.6,3.63953]
[1740063118341,5.24,2748.0,2747.7,3.63932]
[1740063118888,8.87905,2748.0,2747.2,0.7794]
[1740063119102,0.826,2747.5,2746.9,0.7794]
[1740063119248,3.6399,2747.4,2746.8,3.64051]
[1740063119447,3.64015,2747.2,2746.6,3.64077]
[1740063119748,3.64015,2747.2,2746.3,3.64116]
[1740063120060,5.24,2747.4,2746.6,3.64075]
[1740063120290,0.6066,2747.3,2746.4,3.64106]
[1740063120442,0.6066,2747.3,2746.3,3.64125]
[1740063120443,3.64048,2746.9,2746.3,3.64125]
[1740063120643,0.819,2746.7,2746.2,3.64134]
[1740063120880,6.059,2746.7,2746.0,3.64156]
[1740063121059,9.6998,2746.7,2746.1,3.64143]
[1740063121258,3.64103,2746.5,2745.7,4.42145]
[1740063121498,3.64103,2746.5,2745.8,3.64191]
[1740063121666,3.64127,2746.3,2745.7,7.28401]
[1740063121864,3.64103,2746.5,2745.7,3.64196]
[1740063122065,3.64103,2746.5,2745.9,3.64176]
[1740063122262,3.64121,2746.4,2745.7,3.64196]
[1740063122747,3.64147,2746.2,2745.5,3.64221]
[1740063123294,0.7889,2746.3,2745.5,3.64229]
[1740063123500,0.7889,2746.3,2745.1,0.7794]
[1740063123501,0.7889,2746.3,2745.8,3.64182]
[1740063123802,0.7889,2746.3,2745.1,0.7794]
[1740063123963,0.7889,2746.3,2745.7,3.64192]
[1740063124163,3.6414,2746.2,2745.6,3.64218]
[1740063124403,3.64187,2745.9,2745.2,3.64267]
[1740063124606,3.64215,2745.7,2745.0,3.64291]
[1740063124767,8.88215,2745.7,2745.0,3.64291]
[1740063124970,3.64229,2745.6,2745.0,3.64291]
[1740063125166,8.88215,2745.7,2745.0,3.64291]
[1740063125365,9.848805,2745.7,2745.0,3.64291]
[1740063125585,6.206655,2745.7,2744.8,3.64318]
[1740063125911,0.7536,2745.2,2744.6,3.64347]
[1740063126398,0.7536,2745.2,2744.7,3.64327]
[1740063126949,4.39641,2745.2,2744.5,3.64355]
[1740063127149,3.64287,2745.1,2744.5,3.64355]
[1740063127346,5.9936,2745.2,2744.7,3.64338]
[1740063127592,5.9936,2745.2,2744.5,7.28709]
[1740063127593,9.63641,2745.2,2744.5,7.28709]
[1740063127796,9.63641,2745.2,2744.3,0.763]
[1740063127797,3.64308,2745.0,2744.4,3.64375]
[1740063128009,3.64286,2745.1,2744.4,3.64375]
[1740063128156,3.64319,2744.9,2744.3,3.64384]
[1740063129474,7.32151,2745.2,2744.3,3.64384]
[1740063129680,3.64328,2744.8,2744.2,3.64404]
[1740063130060,3.64338,2744.7,2743.9,3.64444]
[1740063130395,0.8308,2744.6,2744.0,3.64422]
[1740063130798,0.8308,2744.6,2743.8,3.64446]
[1740063130799,7.28742,2744.5,2743.8,3.64446]
[1740063131102,0.8308,2744.6,2743.7,0.1517811]
[1740063131103,3.63413031,2744.2,2743.7,0.1517811]
[1740063131300,7.27826031,2744.2,2743.7,0.1517811]
[1740063131480,7.27830031,2744.2,2743.7,0.1517811]
[1740063131666,8.00612634,2744.2,2743.7,0.1517811]
[1740063131992,3.6444,2744.0,2743.7,0.1517811]
[1740063132155,8.8844,2744.0,2743.7,0.1517811]
[1740063132365,5.24,2744.0,2743.7,0.1517811]
[1740063132572,6.6475396,2744.0,2743.7,0.1517811]
[1740063132767,3.64458,2743.8,2743.7,0.1517811]
[1740063133168,4.46808,2743.8,2743.7,0.1517811]
[1740063133374,9.70808,2743.8,2743.7,0.1517811]
[1740063133667,3.64537,2743.2,2743.1,0.005]
[1740063133894,0.7933,2743.0,2741.5,0.8307]
[1740063134107,3.64627,2742.6,2741.9,3.64706]
[1740063134291,0.8101,2742.5,2741.6,0.03669348]
[1740063134496,0.8101,2742.5,2742.0,0.03662954]
[1740063134497,4.45643,2742.5,2742.0,0.03662954]
[1740063134692,3.64681,2742.2,2741.2,3.64799]
[1740063134890,3.64681,2742.2,2741.0,0.1517811]
[1740063134891,3.64701,2742.0,2741.0,0.1517811]
[1740063135091,0.8101,2742.1,2741.2,3.648]
[1740063135299,0.8101,2742.1,2741.0,0.1517811]
[1740063135747,3.64753,2741.6,2741.0,0.1517811]
[1740063135873,3.64791,2741.3,2741.0,0.1517811]
[1740063136072,4.43087,2741.1,2741.0,0.1517811]
[1740063136608,5.24,2741.1,2741.0,0.1517811]
[1740063137007,0.364753,2741.5,2741.0,0.1517811]
[1740063137008,5.24,2741.5,2741.0,0.1517811]
[1740063137217,0.7526,2742.1,2741.1,3.64817]
[1740063137520,0.7526,2742.1,2741.0,0.9663811]
[1740063137521,3.64646,2742.4,2741.3,3.6479]
[1740063137687,8.88646,2742.4,2741.4,3.64775]
[1740063137889,0.7526,2742.2,2741.0,0.1517811]
[1740063138212,0.8293,2741.3,2741.0,0.1517811]
[1740063138815,3.0,2742.0,2741.0,0.1517811]
[1740063138816,5.24,2741.9,2741.4,3.64767]
[1740063139013,0.524,2741.9,2741.4,3.64767]
[1740063139309,8.88672,2742.2,2741.2,3.648]
[1740063139510,5.24,2742.2,2741.2,3.648]
[1740063139811,5.24,2742.2,2741.5,3.64762]
[1740063140033,0.824,2742.1,2741.6,3.64748]
[1740063140227,5.24,2742.3,2742.2,3.6467]
[1740063140426,0.8293,2742.4,2741.9,3.64697]
[1740063140427,6.0693,2742.4,2741.9,3.64697]
[1740063140724,0.8293,2742.9,2742.3,3.64644]
[1740063141035,0.8293,2743.3,2742.4,0.04025516]
[1740063141193,0.8293,2743.3,2742.4,0.831]
[1740063141526,0.8293,2743.3,2742.7,3.64601]
[1740063141728,3.64538,2743.2,2742.5,0.04389438]
[1740063141930,3.6458,2742.9,2742.8,0.0401806]
[1740063142134,0.7945,2742.6,2741.8,3.64723]
[1740063142329,0.7945,2742.6,2741.7,3.64723]
[1740063142629,0.444064,2742.5,2741.8,0.04403676]
[1740063143135,3.64644,2742.4,2741.8,0.04403676]
[1740063143289,3.64697,2742.0,2741.8,0.04403676]
[1740063143672,3.64732,2741.8,2741.1,3.64816]
[1740063143830,5.24,2741.8,2741.0,0.1517811]
[1740063144007,3.64803,2741.3,2741.0,0.1517811]
[1740063144188,3.64777,2741.4,2741.0,0.1517811]
[1740063144393,0.8079,2741.3,2741.0,0.1517811]
[1740063145000,0.8079,2741.3,2741.0,3.7999911]
[1740063145207,0.8144,2741.9,2741.4,3.64767]
[1740063145408,0.8144,2741.9,2741.3,3.6479]
[1740063145636,0.8144,2741.9,2741.4,3.64766]
[1740063145792,5.24,2742.2,2741.7,3.64735]
[1740063145992,5.24,2742.2,2741.0,0.1517811]
[1740063145993,6.0135,2742.3,2741.8,3.64721]
[1740063146194,6.0135,2742.3,2741.1,0.793]
[1740063146429,0.7735,2742.3,2741.7,3.64726]
[1740063146628,0.7735,2742.3,2741.9,3.64709]
[1740063146833,1.4192564,2742.3,2741.8,3.64719]
[1740063147033,5.24,2742.4,2741.9,0.03646946]
[1740063147235,3.64633,2742.5,2741.7,3.64725]
[1740063147444,5.24,2742.6,2742.0,3.64685]
[1740063147747,5.24,2742.6,2742.0,3.64696]
[1740063148449,3.64656,2742.4,2741.7,3.64735]
[1740063148649,0.729298,2742.3,2741.6,3.6475]
[1740063148809,3.64642,2742.5,2741.8,3.64715]
[1740063149156,5.24,2742.6,2741.9,3.647]
[1740063149447,0.7643,2742.1,2741.5,3.64755]
[1740063149646,0.7643,2742.1,2741.0,0.1517811]
[1740063149647,9.65124,2742.1,2741.0,0.1517811]
[1740063149849,3.6471,2741.9,2741.2,3.64794]
[1740063150147,0.965124,2742.0,2741.3,3.6478]
[1740063150351,0.965124,2742.0,2741.4,3.64767]
[1740063150649,3.64711,2741.9,2741.2,3.64797]
[1740063150811,6.205124,2742.0,2741.2,3.64797]
[1740063151144,0.7878,2741.4,2741.0,0.1517811]
[1740063151946,0.8232,2741.5,2741.0,0.1517811]
[1740063152247,0.8232,2741.5,2741.3,3.64782]
[1740063152459,5.24,2741.6,2741.0,0.1517811]
[1740063152658,5.24,2741.6,2741.1,3.64816]
[1740063152826,6.211052,2741.6,2741.1,3.64807]
[1740063153027,6.211052,2741.6,2741.0,3.8000511]
[1740063153251,6.211052,2741.6,2741.1,3.64813]
[1740063153667,6.211052,2741.6,2741.1,3.64805]
[1740063154035,6.211052,2741.6,2741.0,0.1517811]
[1740063154351,0.8255,2742.2,2741.1,0.7554]
[1740063154540,0.8255,2742.2,2741.6,3.6475]
[1740063154859,0.8255,2742.2,2741.7,0.04410144]
[1740063155072,6.0655,2742.2,2741.7,0.04410144]
[1740063155432,6.0655,2742.2,2742.0,3.64696]
[1740063155632,5.24,2742.2,2742.0,3.64689]
[1740063155837,0.8228,2742.9,2742.3,3.64648]
[1740063156031,0.60628,2742.8,2742.3,3.64648]
[1740063156232,0.60628,2742.8,2742.1,3.64677]
[1740063156474,0.60628,2742.8,2742.4,0.04395905]
[1740063156475,3.6463,2742.5,2742.4,0.04395905]
[1740063156772,3.64657,2742.3,2741.6,3.64741]
[1740063157175,0.8228,2742.4,2741.7,0.05981561]
[1740063157374,4.45943,2741.8,2741.7,0.05981561]
[1740063157574,6.0522,2741.8,2741.2,3.64802]
[1740063157874,6.0522,2741.8,2741.5,3.64755]
[1740063158061,5.24,2741.8,2741.5,3.64755]
[1740063158379,0.60628,2742.8,2741.6,0.08050504]
[1740063158380,3.64628,2742.6,2741.6,0.08050504]
[1740063158574,0.888628,2742.5,2742.0,3.64689]
[1740063158776,0.888628,2742.5,2741.9,3.64699]
[1740063158979,0.888628,2742.5,2742.1,3.68438798]
[1740063159149,4.535048,2742.5,2742.0,0.037386]
[1740063159354,0.888628,2742.5,2742.2,0.04414278]
[1740063159667,3.64644,2742.4,2742.3,0.04044557]
[1740063159863,3.64657,2742.3,2741.6,3.64742]
[1740063160070,3.64657,2742.3,2741.6,7.29484]
[1740063160240,3.64657,2742.3,2741.7,3.64736]
[1740063160441,3.64657,2742.3,2741.6,3.64742]
[1740063160671,3.64686,2742.1,2741.4,3.64771]
[1740063160855,0.441906,2742.0,2741.4,3.64769]
[1740063161056,0.441906,2742.0,2741.0,0.1517811]
[1740063161384,3.0,2742.2,2741.0,0.1517811]
[1740063161584,4.42037,2741.1,2741.0,0.1517811]
[1740063161881,7.42037,2741.1,2741.0,0.1517811]
[1740063162083,12.66037,2741.1,2741.0,1.1e-06]
[1740063162289,12.66037,2741.1,2739.6,3.65015]
[1740063162290,0.7877,2740.3,2739.6,3.65015]
[1740063162445,0.7877,2740.3,2739.2,3.65058]
[1740063162446,3.64973,2740.0,2739.2,3.65058]
[1740063162649,3.64973,2740.0,2738.9,0.7768]
[1740063162650,5.24,2740.0,2739.3,3.65052]
[1740063162875,5.24,2740.1,2739.5,3.65021]
[1740063163077,5.24,2740.1,2739.6,3.65013]
[1740063163385,3.64975,2740.0,2739.1,3.65083]
[1740063163546,6.128975,2739.9,2739.1,3.65083]
[1740063163945,6.128975,2739.9,2738.8,4.20090252]
[1740063163946,5.24,2739.9,2738.8,4.20090252]